[Event "*** Titled Tuesday Blitz"]
[Site "Chess.com"]
[Date "2020.04.21"]
[Round "3"]
[White "GothamChess"]
[Black "mc4chess"]
[Result "0-1"]
[WhiteElo "2573"]
[BlackElo "2385"]
[TimeControl "180+1"]
[EndTime "10:27:40 PDT"]
[Termination "mc4chess won by resignation"]

1. e4 {[%clk 0:03:00.9]} 1... c5 {[%clk 0:02:59.3]} 2. a3 {[%clk 0:03:00.5]}
2... e6 {[%clk 0:02:58.7]} 3. b4 {[%clk 0:03:00.5]} 3... cxb4 {[%clk 0:02:57.8]}
4. axb4 {[%clk 0:03:01.4]} 4... Bxb4 {[%clk 0:02:57.9]} 5. c3 {[%clk 0:03:01.9]}
5... Be7 {[%clk 0:02:56.3]} 6. d4 {[%clk 0:03:02.6]} 6... d6 {[%clk 0:02:55.3]}
7. Bd3 {[%clk 0:03:02.5]} 7... Nf6 {[%clk 0:02:55.1]} 8. f4 {[%clk 0:03:03.2]}
8... O-O {[%clk 0:02:52.2]} 9. Nf3 {[%clk 0:03:03.7]} 9... b6 {[%clk 0:02:52]}
10. O-O {[%clk 0:03:02.7]} 10... Bb7 {[%clk 0:02:52.1]} 11. Qe2 {[%clk
0:03:02.7]} 11... a5 {[%clk 0:02:49.7]} 12. Na3 {[%clk 0:03:01.2]} 12... Qc8
{[%clk 0:02:45.7]} 13. Bd2 {[%clk 0:02:56.2]} 13... Ba6 {[%clk 0:02:44.5]} 14.
Nb5 {[%clk 0:02:56]} 14... Nc6 {[%clk 0:02:38.3]} 15. e5 {[%clk 0:02:54.7]}
15... dxe5 {[%clk 0:02:37.2]} 16. fxe5 {[%clk 0:02:53.7]} 16... Nd5 {[%clk
0:02:35.4]} 17. Qe4 {[%clk 0:02:36.9]} 17... g6 {[%clk 0:01:58.8]} 18. Rab1
{[%clk 0:02:28.7]} 18... f5 {[%clk 0:01:41.6]} 19. exf6 {[%clk 0:02:27.8]} 19...
Nxf6 {[%clk 0:01:41.7]} 20. Qe2 {[%clk 0:02:24.5]} 20... Nd5 {[%clk 0:01:37.8]}
21. g3 {[%clk 0:02:06.8]} 21... Bb7 {[%clk 0:01:25]} 22. Bh6 {[%clk 0:01:59.6]}
22... Rf7 {[%clk 0:01:15.6]} 23. h4 {[%clk 0:01:49.8]} 23... Ba6 {[%clk
0:01:06.2]} 24. h5 {[%clk 0:01:47.3]} 24... Bxb5 {[%clk 0:01:02.2]} 25. Rxb5
{[%clk 0:01:38.5]} 25... Nxc3 {[%clk 0:01:01.5]} 26. Qe3 {[%clk 0:01:21.5]}
26... Nxb5 {[%clk 0:01:00.5]} 27. hxg6 {[%clk 0:01:22.2]} 27... hxg6 {[%clk
0:00:49.6]} 28. Bxg6 {[%clk 0:01:22.2]} 28... Rf6 {[%clk 0:00:41.4]} 29. Qe4
{[%clk 0:01:17.2]} 29... Nbxd4 {[%clk 0:00:36.6]} 30. Ng5 {[%clk 0:01:10.9]}
30... Rxf1+ {[%clk 0:00:34.5]} 31. Kxf1 {[%clk 0:01:11.8]} 31... Bxg5 {[%clk
0:00:31.8]} 32. Bxg5 {[%clk 0:00:56.3]} 32... Qf8+ {[%clk 0:00:31.3]} 33. Kg2
{[%clk 0:00:55]} 33... Qf3+ {[%clk 0:00:27.1]} 34. Qxf3 {[%clk 0:00:51.4]} 34...
Nxf3 {[%clk 0:00:28]} 35. Kxf3 {[%clk 0:00:52.3]} 35... Ne5+ {[%clk 0:00:27]}
0-1

[Event "*** Titled Tuesday Blitz"]
[Site "Chess.com"]
[Date "2020.04.21"]
[Round "3"]
[White "ace_mar"]
[Black "icychess54"]
[Result "1-0"]
[WhiteElo "2387"]
[BlackElo "2183"]
[TimeControl "180+1"]
[EndTime "10:27:40 PDT"]
[Termination "ace_mar won by checkmate"]

1. d4 {[%clk 0:03:00.9]} 1... d5 {[%clk 0:02:59.4]} 2. c4 {[%clk 0:03:01.3]}
2... c6 {[%clk 0:02:59.7]} 3. Nf3 {[%clk 0:03:01.4]} 3... Nf6 {[%clk 0:03:00.1]}
4. e3 {[%clk 0:03:01.9]} 4... e6 {[%clk 0:02:57.8]} 5. b3 {[%clk 0:03:01.7]}
5... Nbd7 {[%clk 0:02:58]} 6. Bb2 {[%clk 0:03:01.8]} 6... Be7 {[%clk 0:02:58.4]}
7. Bd3 {[%clk 0:03:02]} 7... O-O {[%clk 0:02:58.9]} 8. Nbd2 {[%clk 0:03:02.1]}
8... b6 {[%clk 0:02:59.1]} 9. e4 {[%clk 0:03:00.7]} 9... dxe4 {[%clk 0:02:58.8]}
10. Nxe4 {[%clk 0:03:01.6]} 10... Bb7 {[%clk 0:02:58.4]} 11. Qe2 {[%clk
0:02:49.5]} 11... Qc7 {[%clk 0:02:57.5]} 12. O-O {[%clk 0:02:48.4]} 12... Rfd8
{[%clk 0:02:35.8]} 13. Rad1 {[%clk 0:02:46.3]} 13... Qf4 {[%clk 0:02:34.3]} 14.
Ne5 {[%clk 0:02:38.6]} 14... Nxe5 {[%clk 0:01:49.1]} 15. dxe5 {[%clk 0:02:39.5]}
15... Nxe4 {[%clk 0:01:22.1]} 16. Bxe4 {[%clk 0:02:34.3]} 16... Bc5 {[%clk
0:01:18.5]} 17. a3 {[%clk 0:02:21.8]} 17... a5 {[%clk 0:01:17.1]} 18. g3 {[%clk
0:02:17.5]} 18... Qg5 {[%clk 0:01:10.7]} 19. Qf3 {[%clk 0:02:16.7]} 19... Rd2
{[%clk 0:01:00.9]} 20. Bc1 {[%clk 0:02:04.2]} 20... Rxf2 {[%clk 0:00:34.1]} 21.
Rxf2 {[%clk 0:01:59.6]} 21... Qxe5 {[%clk 0:00:32.6]} 22. Be3 {[%clk 0:01:55.7]}
22... Bxe3 {[%clk 0:00:23.2]} 23. Qxe3 {[%clk 0:01:56.6]} 23... f5 {[%clk
0:00:22.9]} 24. Rd7 {[%clk 0:01:46.9]} 24... Bc8 {[%clk 0:00:18.5]} 25. Rd8+
{[%clk 0:01:42]} 25... Kf7 {[%clk 0:00:17.7]} 26. Qd3 {[%clk 0:01:21.1]} 26...
Ke7 {[%clk 0:00:16.4]} 27. Bxc6 {[%clk 0:01:16.7]} 27... Qe1+ {[%clk 0:00:10.8]}
28. Kg2 {[%clk 0:01:14.5]} 28... Ra7 {[%clk 0:00:11.2]} 29. Qd6+ {[%clk
0:01:11.6]} 29... Kf6 {[%clk 0:00:11.5]} 30. Rf8+ {[%clk 0:01:10]} 30... Kg6
{[%clk 0:00:10.6]} 31. Be8+ {[%clk 0:01:08.7]} 31... Kh6 {[%clk 0:00:09.9]} 32.
Qf4+ {[%clk 0:01:08.2]} 32... g5 {[%clk 0:00:07.8]} 33. Rf6+ {[%clk 0:01:07.9]}
33... Kg7 {[%clk 0:00:08.2]} 34. Qxg5+ {[%clk 0:01:08.2]} 34... Kh8 {[%clk
0:00:06.9]} 35. Rf8# {[%clk 0:01:08.3]} 1-0

[Event "*** Titled Tuesday Blitz"]
[Site "Chess.com"]
[Date "2020.04.21"]
[Round "3"]
[White "Jungle_Jaguar"]
[Black "gena217"]
[Result "0-1"]
[WhiteElo "2661"]
[BlackElo "2909"]
[TimeControl "180+1"]
[EndTime "10:27:44 PDT"]
[Termination "gena217 won by resignation"]

1. e4 {[%clk 0:02:59.8]} 1... c6 {[%clk 0:02:58.8]} 2. d4 {[%clk 0:02:57]} 2...
d5 {[%clk 0:02:59.7]} 3. exd5 {[%clk 0:02:56.2]} 3... cxd5 {[%clk 0:03:00.6]} 4.
Bd3 {[%clk 0:02:55.6]} 4... Nc6 {[%clk 0:03:00]} 5. c3 {[%clk 0:02:56]} 5... Qc7
{[%clk 0:02:59.3]} 6. Nf3 {[%clk 0:02:51.9]} 6... Bg4 {[%clk 0:02:58.7]} 7. h3
{[%clk 0:02:49.2]} 7... Bh5 {[%clk 0:02:58.3]} 8. O-O {[%clk 0:02:42.2]} 8... e6
{[%clk 0:02:56.9]} 9. Re1 {[%clk 0:02:28]} 9... Bd6 {[%clk 0:02:53.9]} 10. c4
{[%clk 0:02:27.4]} 10... dxc4 {[%clk 0:02:04.5]} 11. Bxc4 {[%clk 0:02:24.2]}
11... Bxf3 {[%clk 0:02:04.9]} 12. Qxf3 {[%clk 0:02:23]} 12... Nxd4 {[%clk
0:02:04.1]} 13. Qg4 {[%clk 0:02:08.1]} 13... O-O-O {[%clk 0:01:38.5]} 14. b3
{[%clk 0:01:42.2]} 14... Nf6 {[%clk 0:01:34.3]} 15. Qxg7 {[%clk 0:01:36.3]}
15... Nf3+ {[%clk 0:01:32.4]} 16. Kf1 {[%clk 0:01:27.1]} 16... Nxe1 {[%clk
0:01:32]} 17. Bb2 {[%clk 0:01:16]} 17... Be5 {[%clk 0:01:22.8]} 18. Nc3 {[%clk
0:01:07.3]} 18... Rhg8 {[%clk 0:01:09]} 19. Qh6 {[%clk 0:01:03.5]} 19... Nc2
{[%clk 0:01:03.4]} 20. Rc1 {[%clk 0:01:01.5]} 20... Bf4 {[%clk 0:01:01.7]} 21.
Qxf6 {[%clk 0:00:57.4]} 21... Bxc1 {[%clk 0:01:02.2]} 22. Bxc1 {[%clk
0:00:55.2]} 22... Qh2 {[%clk 0:01:02.4]} 23. Ke2 {[%clk 0:00:42.9]} 23... Qxg2
{[%clk 0:00:54.3]} 24. Bf4 {[%clk 0:00:37.8]} 24... Nd4+ {[%clk 0:00:49.2]} 25.
Kd3 {[%clk 0:00:20.5]} 25... Qf3+ {[%clk 0:00:44.9]} 26. Be3 {[%clk 0:00:17.6]}
26... Qxf6 {[%clk 0:00:44.4]} 0-1

[Event "*** Titled Tuesday Blitz"]
[Site "Chess.com"]
[Date "2020.04.21"]
[Round "3"]
[White "penguingm1"]
[Black "lucliasco"]
[Result "1-0"]
[WhiteElo "2858"]
[BlackElo "2634"]
[TimeControl "180+1"]
[EndTime "10:27:45 PDT"]
[Termination "penguingm1 won by resignation"]

1. d4 {[%clk 0:03:00.9]} 1... d5 {[%clk 0:02:58.2]} 2. Bf4 {[%clk 0:03:00.7]}
2... c5 {[%clk 0:02:55]} 3. e3 {[%clk 0:03:00.6]} 3... Nc6 {[%clk 0:02:54.4]} 4.
Nf3 {[%clk 0:03:00.5]} 4... Bg4 {[%clk 0:02:54.2]} 5. Nbd2 {[%clk 0:03:00.2]}
5... e6 {[%clk 0:02:54.2]} 6. c3 {[%clk 0:02:56.7]} 6... Bd6 {[%clk 0:02:51.7]}
7. Bg3 {[%clk 0:02:50.8]} 7... Nge7 {[%clk 0:02:50.8]} 8. Qb3 {[%clk 0:02:49.8]}
8... Bxg3 {[%clk 0:02:44.5]} 9. hxg3 {[%clk 0:02:49.6]} 9... Rb8 {[%clk
0:02:43.9]} 10. Be2 {[%clk 0:02:49.4]} 10... c4 {[%clk 0:02:43]} 11. Qc2 {[%clk
0:02:48.9]} 11... Bxf3 {[%clk 0:02:43.5]} 12. Bxf3 {[%clk 0:02:48.5]} 12... f5
{[%clk 0:02:42.9]} 13. g4 {[%clk 0:02:48.3]} 13... O-O {[%clk 0:02:35.7]} 14. b3
{[%clk 0:02:38.2]} 14... cxb3 {[%clk 0:02:34.2]} 15. axb3 {[%clk 0:02:37.3]}
15... Rc8 {[%clk 0:02:34.2]} 16. Rc1 {[%clk 0:02:29.2]} 16... g6 {[%clk
0:02:31.1]} 17. gxf5 {[%clk 0:02:19.3]} 17... exf5 {[%clk 0:02:29.5]} 18. O-O
{[%clk 0:02:16.2]} 18... Qd6 {[%clk 0:02:27.7]} 19. c4 {[%clk 0:02:14.8]} 19...
f4 {[%clk 0:02:21]} 20. cxd5 {[%clk 0:01:44.8]} 20... Nxd5 {[%clk 0:02:09.9]}
21. Ne4 {[%clk 0:01:25.3]} 21... Qe7 {[%clk 0:01:56.3]} 22. Qc4 {[%clk
0:01:09.3]} 22... Nb4 {[%clk 0:01:26.2]} 23. Nc5 {[%clk 0:01:01.1]} 23... Rfd8
{[%clk 0:00:51.9]} 24. e4 {[%clk 0:00:50.9]} 24... b6 {[%clk 0:00:51.6]} 25.
exd5 {[%clk 0:00:50.3]} 25... bxc5 {[%clk 0:00:52.2]} 26. dxc5 {[%clk
0:00:50.8]} 26... a5 {[%clk 0:00:47.7]} 27. Rfe1 {[%clk 0:00:45.9]} 27... Qf7
{[%clk 0:00:47.8]} 28. Re5 {[%clk 0:00:46.1]} 28... Rxc5 {[%clk 0:00:40.5]} 29.
Qxc5 {[%clk 0:00:43.5]} 29... Nd3 {[%clk 0:00:41.1]} 30. Qc3 {[%clk 0:00:44.1]}
1-0

[Event "*** Titled Tuesday Blitz"]
[Site "Chess.com"]
[Date "2020.04.21"]
[Round "3"]
[White "violetflower04"]
[Black "ChesterF"]
[Result "0-1"]
[WhiteElo "2253"]
[BlackElo "2529"]
[TimeControl "180+1"]
[EndTime "10:27:46 PDT"]
[Termination "ChesterF won by resignation"]

1. b3 {[%clk 0:03:00.9]} 1... d5 {[%clk 0:02:59]} 2. Bb2 {[%clk 0:03:01.3]} 2...
Bf5 {[%clk 0:02:59.6]} 3. Nf3 {[%clk 0:03:01.1]} 3... e6 {[%clk 0:02:59.8]} 4.
e3 {[%clk 0:03:00]} 4... Nf6 {[%clk 0:03:00]} 5. c4 {[%clk 0:02:59.7]} 5... c6
{[%clk 0:03:00]} 6. Nc3 {[%clk 0:02:59.3]} 6... h6 {[%clk 0:02:56.4]} 7. d3
{[%clk 0:02:54.3]} 7... Be7 {[%clk 0:02:55.8]} 8. Be2 {[%clk 0:02:46.4]} 8...
O-O {[%clk 0:02:55.7]} 9. O-O {[%clk 0:02:47]} 9... a5 {[%clk 0:02:51.2]} 10. a3
{[%clk 0:02:45.5]} 10... Nbd7 {[%clk 0:02:50.3]} 11. Re1 {[%clk 0:02:31.5]}
11... Bh7 {[%clk 0:02:50.1]} 12. Bf1 {[%clk 0:02:29.5]} 12... Qb8 {[%clk
0:02:42.2]} 13. e4 {[%clk 0:02:19.4]} 13... dxe4 {[%clk 0:02:33.3]} 14. dxe4
{[%clk 0:02:20.3]} 14... Rd8 {[%clk 0:02:32.8]} 15. Qe2 {[%clk 0:01:54.1]} 15...
Nc5 {[%clk 0:02:28.5]} 16. e5 {[%clk 0:01:54.1]} 16... Ne8 {[%clk 0:02:21.5]}
17. b4 {[%clk 0:01:40.3]} 17... Nd3 {[%clk 0:02:15.4]} 18. c5 {[%clk 0:01:16.5]}
18... Nxe1 {[%clk 0:02:08.4]} 19. Rxe1 {[%clk 0:01:10.2]} 19... axb4 {[%clk
0:02:04.8]} 20. axb4 {[%clk 0:01:11.1]} 20... Nc7 {[%clk 0:01:55.6]} 21. Ne4
{[%clk 0:00:50.1]} 21... Nd5 {[%clk 0:01:51.6]} 22. Qc4 {[%clk 0:00:42.5]} 22...
b5 {[%clk 0:01:47.5]} 23. Qb3 {[%clk 0:00:20.4]} 23... Ra4 {[%clk 0:01:44.7]}
24. Bc3 {[%clk 0:00:14]} 24... Qa7 {[%clk 0:01:24.6]} 25. Nd4 {[%clk 0:00:13.5]}
25... Qa8 {[%clk 0:01:18.8]} 26. Nd6 {[%clk 0:00:12.1]} 26... Ra3 {[%clk
0:01:16.2]} 27. Qxa3 {[%clk 0:00:03.7]} 27... Qxa3 {[%clk 0:01:15.6]} 28. Bd2
{[%clk 0:00:04.6]} 28... Qb2 {[%clk 0:01:10.2]} 29. Nxc6 {[%clk 0:00:04.4]}
29... Qxd2 {[%clk 0:01:07.2]} 30. Re2 {[%clk 0:00:04.9]} 30... Qd1 {[%clk
0:01:06.2]} 31. Ra2 {[%clk 0:00:04.7]} 31... Bd3 {[%clk 0:01:05.5]} 0-1

[Event "*** Titled Tuesday Blitz"]
[Site "Chess.com"]
[Date "2020.04.21"]
[Round "3"]
[White "kleopl"]
[Black "tteshan"]
[Result "1-0"]
[WhiteElo "2463"]
[BlackElo "2229"]
[TimeControl "180+1"]
[EndTime "10:27:46 PDT"]
[Termination "kleopl won by resignation"]

1. c4 {[%clk 0:03:00.9]} 1... e6 {[%clk 0:02:58.5]} 2. Nc3 {[%clk 0:03:00.3]}
2... Nf6 {[%clk 0:02:57.7]} 3. e4 {[%clk 0:02:59.6]} 3... d6 {[%clk 0:02:52.4]}
4. d4 {[%clk 0:02:56.5]} 4... Be7 {[%clk 0:02:46.8]} 5. Be2 {[%clk 0:02:56]}
5... O-O {[%clk 0:02:45.9]} 6. Nf3 {[%clk 0:02:55.5]} 6... b6 {[%clk 0:02:36.7]}
7. O-O {[%clk 0:02:50.9]} 7... Bb7 {[%clk 0:02:36.5]} 8. d5 {[%clk 0:02:51.4]}
8... e5 {[%clk 0:02:34.8]} 9. Rb1 {[%clk 0:02:49]} 9... Nbd7 {[%clk 0:02:31.2]}
10. b4 {[%clk 0:02:48.5]} 10... a5 {[%clk 0:02:16]} 11. a3 {[%clk 0:02:47]}
11... axb4 {[%clk 0:02:09.1]} 12. axb4 {[%clk 0:02:47.9]} 12... Ra7 {[%clk
0:02:00.9]} 13. h3 {[%clk 0:02:44.9]} 13... Qa8 {[%clk 0:01:58.5]} 14. Be3
{[%clk 0:02:44.6]} 14... c6 {[%clk 0:01:33]} 15. Nh4 {[%clk 0:02:32.6]} 15...
Nxe4 {[%clk 0:00:59.5]} 16. Nxe4 {[%clk 0:02:31.4]} 16... Bxh4 {[%clk
0:00:59.3]} 17. Nxd6 {[%clk 0:02:31.3]} 17... cxd5 {[%clk 0:00:56.5]} 18. Nxb7
{[%clk 0:02:26.8]} 18... Qxb7 {[%clk 0:00:57.2]} 19. Qxd5 {[%clk 0:02:18.9]}
19... Qxd5 {[%clk 0:00:53]} 20. cxd5 {[%clk 0:02:19.8]} 20... Rfa8 {[%clk
0:00:47.9]} 21. Bb5 {[%clk 0:02:18.4]} 21... Be7 {[%clk 0:00:31.9]} 22. Rfc1
{[%clk 0:02:12.9]} 22... h6 {[%clk 0:00:22.3]} 23. Bxd7 {[%clk 0:02:04.2]} 23...
Rxd7 {[%clk 0:00:22.4]} 24. Bxb6 {[%clk 0:02:03.7]} 24... Rxd5 {[%clk 0:00:21]}
25. Bc5 {[%clk 0:01:59.4]} 25... Bxc5 {[%clk 0:00:19.7]} 26. bxc5 {[%clk
0:02:00.3]} 26... Rc8 {[%clk 0:00:19.9]} 27. c6 {[%clk 0:01:59]} 27... Kf8
{[%clk 0:00:15]} 28. Rb7 {[%clk 0:01:50.6]} 28... Ke8 {[%clk 0:00:12.7]} 29. Kh2
{[%clk 0:01:44.3]} 29... Rd6 {[%clk 0:00:12.3]} 30. Rc5 {[%clk 0:01:36.4]} 30...
Rdxc6 {[%clk 0:00:11.3]} 31. Rxe5+ {[%clk 0:01:36.5]} 31... Kf8 {[%clk 0:00:09]}
32. Rf5 {[%clk 0:01:35.5]} 32... f6 {[%clk 0:00:07.5]} 33. Rd5 {[%clk
0:01:33.1]} 33... R6c7 {[%clk 0:00:04.9]} 34. Rb3 {[%clk 0:01:32.6]} 34... Ke8
{[%clk 0:00:04.4]} 35. Rg3 {[%clk 0:01:30.5]} 35... g5 {[%clk 0:00:03.8]} 36.
Rf3 {[%clk 0:01:30.1]} 36... Kf7 {[%clk 0:00:04]} 37. Rd6 {[%clk 0:01:30.2]}
37... Rc6 {[%clk 0:00:03.8]} 38. Rfxf6+ {[%clk 0:01:30.2]} 38... Ke7 {[%clk
0:00:04.3]} 39. Rxc6 {[%clk 0:01:30.4]} 39... Rc7 {[%clk 0:00:03.7]} 40. Rxh6
{[%clk 0:01:28.8]} 40... Rxc6 {[%clk 0:00:02.4]} 1-0

[Event "*** Titled Tuesday Blitz"]
[Site "Chess.com"]
[Date "2020.04.21"]
[Round "3"]
[White "ElHelvetico"]
[Black "igorkovalenko"]
[Result "0-1"]
[WhiteElo "2651"]
[BlackElo "2876"]
[TimeControl "180+1"]
[EndTime "10:27:47 PDT"]
[Termination "igorkovalenko won by resignation"]

1. e4 {[%clk 0:03:00.9]} 1... c5 {[%clk 0:02:59.6]} 2. Nf3 {[%clk 0:03:00.7]}
2... e6 {[%clk 0:03:00.3]} 3. d4 {[%clk 0:03:01.3]} 3... cxd4 {[%clk 0:03:01.2]}
4. Nxd4 {[%clk 0:03:02.1]} 4... Nf6 {[%clk 0:03:01.9]} 5. Nc3 {[%clk 0:03:02.1]}
5... Nc6 {[%clk 0:03:02.8]} 6. Nxc6 {[%clk 0:03:02.4]} 6... bxc6 {[%clk
0:03:03.7]} 7. e5 {[%clk 0:03:03.1]} 7... Nd5 {[%clk 0:03:04.3]} 8. Ne4 {[%clk
0:03:03.8]} 8... Bb7 {[%clk 0:03:05]} 9. c4 {[%clk 0:02:59.1]} 9... Nb4 {[%clk
0:03:04.6]} 10. a3 {[%clk 0:02:53.1]} 10... Qa5 {[%clk 0:03:04.2]} 11. axb4
{[%clk 0:02:37.6]} 11... Qxa1 {[%clk 0:03:03.8]} 12. c5 {[%clk 0:02:36.6]} 12...
Ba6 {[%clk 0:02:29.4]} 13. g3 {[%clk 0:02:12.3]} 13... Be7 {[%clk 0:02:26.1]}
14. Bxa6 {[%clk 0:01:58.5]} 14... Qxa6 {[%clk 0:02:25.5]} 15. Nd6+ {[%clk
0:01:58.8]} 15... Kf8 {[%clk 0:02:20.5]} 16. Bd2 {[%clk 0:01:55.8]} 16... Bxd6
{[%clk 0:02:13.1]} 17. exd6 {[%clk 0:01:56.7]} 17... Qd3 {[%clk 0:02:12.6]} 18.
Bc3 {[%clk 0:01:52.6]} 18... Qe4+ {[%clk 0:02:10]} 19. Kd2 {[%clk 0:01:52]}
19... f6 {[%clk 0:02:10.5]} 20. Kc1 {[%clk 0:01:44.8]} 20... Kf7 {[%clk
0:02:05.4]} 21. Re1 {[%clk 0:01:42.9]} 21... Qf5 {[%clk 0:02:05.5]} 22. Qe2
{[%clk 0:01:20.7]} 22... h5 {[%clk 0:02:00.6]} 23. Qa6 {[%clk 0:01:12.1]} 23...
Rhb8 {[%clk 0:01:59.6]} 24. f4 {[%clk 0:01:11.4]} 24... Rb5 {[%clk 0:01:57.1]}
25. Kd2 {[%clk 0:01:05.5]} 25... Qd5+ {[%clk 0:01:56.6]} 26. Kc1 {[%clk
0:01:03.2]} 26... Qg2 {[%clk 0:01:53]} 27. f5 {[%clk 0:00:58.6]} 27... e5 {[%clk
0:01:46.2]} 28. Rd1 {[%clk 0:00:54.2]} 28... Qxh2 {[%clk 0:01:22.9]} 29. Qa2+
{[%clk 0:00:54]} 29... Kf8 {[%clk 0:01:23]} 30. Qc4 {[%clk 0:00:50.3]} 30...
Qxg3 {[%clk 0:01:17.8]} 31. Rh1 {[%clk 0:00:47]} 31... Qf4+ {[%clk 0:00:56.9]}
32. Qxf4 {[%clk 0:00:46.9]} 32... exf4 {[%clk 0:00:57.8]} 33. Rxh5 {[%clk
0:00:47.6]} 33... Kf7 {[%clk 0:00:55.8]} 34. Rh4 {[%clk 0:00:48]} 34... a5
{[%clk 0:00:55.8]} 35. bxa5 {[%clk 0:00:45.4]} 35... Rxc5 {[%clk 0:00:56.2]} 36.
Rxf4 {[%clk 0:00:46]} 36... Raxa5 {[%clk 0:00:55.5]} 37. Re4 {[%clk 0:00:43.9]}
37... Ra7 {[%clk 0:00:51.5]} 38. Re7+ {[%clk 0:00:43.2]} 38... Kf8 {[%clk
0:00:52.1]} 39. Kc2 {[%clk 0:00:37.5]} 39... Rxf5 {[%clk 0:00:52]} 40. Bd4
{[%clk 0:00:37.4]} 40... Rb7 {[%clk 0:00:52.3]} 0-1

[Event "*** Titled Tuesday Blitz"]
[Site "Chess.com"]
[Date "2020.04.21"]
[Round "3"]
[White "Vaathi_Coming"]
[Black "Unknown_IM"]
[Result "1-0"]
[WhiteElo "2839"]
[BlackElo "2614"]
[TimeControl "180+1"]
[EndTime "10:27:48 PDT"]
[Termination "Vaathi_Coming won by resignation"]

1. e4 {[%clk 0:03:00.9]} 1... c5 {[%clk 0:02:58.9]} 2. Nf3 {[%clk 0:03:00.2]}
2... e6 {[%clk 0:02:59.1]} 3. d4 {[%clk 0:02:59.8]} 3... cxd4 {[%clk 0:03:00]}
4. Nxd4 {[%clk 0:03:00.7]} 4... Nf6 {[%clk 0:03:00.8]} 5. Nc3 {[%clk 0:02:59.9]}
5... Nc6 {[%clk 0:03:01.2]} 6. Nxc6 {[%clk 0:02:56.7]} 6... bxc6 {[%clk
0:03:00.5]} 7. e5 {[%clk 0:02:57.1]} 7... Nd5 {[%clk 0:03:00.5]} 8. Ne4 {[%clk
0:02:57.4]} 8... Qc7 {[%clk 0:02:59.6]} 9. f4 {[%clk 0:02:57.5]} 9... Qb6 {[%clk
0:02:51.7]} 10. c4 {[%clk 0:02:57.6]} 10... Bb4+ {[%clk 0:02:50.8]} 11. Ke2
{[%clk 0:02:57.7]} 11... f5 {[%clk 0:02:48.2]} 12. exf6 {[%clk 0:02:52]} 12...
Nxf6 {[%clk 0:02:47.8]} 13. Be3 {[%clk 0:02:52.5]} 13... Qc7 {[%clk 0:02:38.7]}
14. Nxf6+ {[%clk 0:02:40.1]} 14... gxf6 {[%clk 0:02:36.9]} 15. Kf2 {[%clk
0:02:18.3]} 15... Bd6 {[%clk 0:02:29.6]} 16. Qh5+ {[%clk 0:02:15.7]} 16... Kd8
{[%clk 0:02:12.1]} 17. Qh6 {[%clk 0:02:02.8]} 17... Rf8 {[%clk 0:02:05.2]} 18.
c5 {[%clk 0:01:46]} 18... Be7 {[%clk 0:02:04.7]} 19. Rd1 {[%clk 0:01:42.5]}
19... Rb8 {[%clk 0:02:02.5]} 20. b3 {[%clk 0:01:42.7]} 20... Qa5 {[%clk
0:01:53.2]} 21. Bc4 {[%clk 0:01:29.6]} 21... Qxa2+ {[%clk 0:01:44.1]} 22. Kf3
{[%clk 0:01:14.3]} 22... Rxb3 {[%clk 0:01:37.2]} 23. Bxb3 {[%clk 0:01:11.3]}
23... Qxb3 {[%clk 0:01:38.1]} 24. Kf2 {[%clk 0:01:04.9]} 24... Ba6 {[%clk
0:01:30.3]} 25. Rd2 {[%clk 0:01:03.5]} 25... Qc4 {[%clk 0:01:00.3]} 26. Rhd1
{[%clk 0:00:49.6]} 26... Kc8 {[%clk 0:00:53.3]} 27. Qxh7 {[%clk 0:00:39.6]}
27... e5 {[%clk 0:00:23.3]} 28. Qxe7 {[%clk 0:00:36]} 1-0

[Event "*** Titled Tuesday Blitz"]
[Site "Chess.com"]
[Date "2020.04.21"]
[Round "3"]
[White "BlackWidow515"]
[Black "kasparicy"]
[Result "0-1"]
[WhiteElo "2061"]
[BlackElo "2330"]
[TimeControl "180+1"]
[EndTime "10:27:49 PDT"]
[Termination "kasparicy won by checkmate"]

1. d4 {[%clk 0:03:00]} 1... Nf6 {[%clk 0:02:24]} 2. Nf3 {[%clk 0:02:58.9]} 2...
g6 {[%clk 0:02:23.6]} 3. g3 {[%clk 0:02:59.1]} 3... d5 {[%clk 0:02:23]} 4. Bg2
{[%clk 0:02:59.2]} 4... Bg7 {[%clk 0:02:23.9]} 5. O-O {[%clk 0:02:58.1]} 5...
O-O {[%clk 0:02:24.8]} 6. Nbd2 {[%clk 0:02:58]} 6... b6 {[%clk 0:02:25.1]} 7. b3
{[%clk 0:02:57.9]} 7... Bb7 {[%clk 0:02:25.8]} 8. Bb2 {[%clk 0:02:58.5]} 8...
Ne4 {[%clk 0:02:24.7]} 9. c4 {[%clk 0:02:55.3]} 9... dxc4 {[%clk 0:02:19.1]} 10.
bxc4 {[%clk 0:02:55.1]} 10... Nxd2 {[%clk 0:02:18.8]} 11. Qxd2 {[%clk
0:02:54.2]} 11... Nc6 {[%clk 0:02:15.2]} 12. d5 {[%clk 0:02:47.6]} 12... Na5
{[%clk 0:02:15.3]} 13. Bxg7 {[%clk 0:02:41.9]} 13... Kxg7 {[%clk 0:02:14.5]} 14.
Qc3+ {[%clk 0:02:42.4]} 14... Kg8 {[%clk 0:02:14.2]} 15. e4 {[%clk 0:02:41.8]}
15... c6 {[%clk 0:02:06.3]} 16. Nd4 {[%clk 0:02:31.9]} 16... cxd5 {[%clk
0:02:05.3]} 17. cxd5 {[%clk 0:02:32.1]} 17... Rc8 {[%clk 0:02:03.8]} 18. Qf3
{[%clk 0:02:21.9]} 18... Nc4 {[%clk 0:01:58.6]} 19. Rfd1 {[%clk 0:02:16.6]}
19... Qd6 {[%clk 0:01:55]} 20. Nb5 {[%clk 0:02:11.8]} 20... Qe5 {[%clk
0:01:32.7]} 21. Nxa7 {[%clk 0:02:02.6]} 21... Rc5 {[%clk 0:01:30.3]} 22. a4
{[%clk 0:02:01]} 22... Ra8 {[%clk 0:01:27.9]} 23. Nb5 {[%clk 0:02:00.1]} 23...
Nb2 {[%clk 0:01:17.5]} 24. Rd4 {[%clk 0:01:41.4]} 24... Rxb5 {[%clk 0:01:10.5]}
25. Qe3 {[%clk 0:01:28.5]} 25... Nc4 {[%clk 0:01:00.6]} 26. Qd3 {[%clk
0:01:16.9]} 26... Rc5 {[%clk 0:00:55.2]} 27. f4 {[%clk 0:01:15.1]} 27... Qg7
{[%clk 0:00:55.2]} 28. Rxc4 {[%clk 0:01:08.4]} 28... Qxa1+ {[%clk 0:00:54.2]}
29. Kf2 {[%clk 0:01:08.4]} 29... Rxc4 {[%clk 0:00:53.7]} 30. Qxc4 {[%clk
0:01:08.3]} 30... Qxa4 {[%clk 0:00:53.4]} 31. Qc7 {[%clk 0:01:07.4]} 31... Qa2+
{[%clk 0:00:40.5]} 32. Kf3 {[%clk 0:01:02.6]} 32... Ra3+ {[%clk 0:00:37.4]} 33.
Kg4 {[%clk 0:01:03]} 33... Qe2+ {[%clk 0:00:32.8]} 34. Bf3 {[%clk 0:00:56.9]}
34... Qxf3+ {[%clk 0:00:32.4]} 35. Kh3 {[%clk 0:00:57.5]} 35... Qh5+ {[%clk
0:00:32.3]} 36. Kg2 {[%clk 0:00:58]} 36... Ra2+ {[%clk 0:00:32.8]} 37. Kf1
{[%clk 0:00:58]} 37... Qd1# {[%clk 0:00:32.4]} 0-1